bitfinex-derivatives/quotes_BTCF0:USTF0_20240903
["timestamp","ask_amount","ask_price","bid_price","bid_amount"]
[1725358403816,0.1772735,58961.0,58960.0,0.157845]
[1725358404123,0.1802735,58961.0,58960.0,0.157845]
[1725358404321,0.119444,58961.0,58960.0,0.157845]
[1725358406017,0.117444,58961.0,58960.0,0.157845]
[1725358406224,0.120444,58961.0,58960.0,0.067845]
[1725358406729,0.067847,58959.0,58958.0,0.09]
[1725358406923,0.429047,58959.0,58958.0,0.157848]
[1725358408139,0.430047,58959.0,58958.0,0.157848]
[1725358409928,0.431047,58959.0,58958.0,0.157848]
[1725358410516,0.430047,58959.0,58958.0,0.157848]
[1725358412427,0.429047,58959.0,58958.0,0.157848]
[1725358412629,0.430047,58959.0,58958.0,0.157848]
[1725358413337,0.4376072,58959.0,58958.0,0.157848]
[1725358413831,0.4366072,58959.0,58958.0,0.157848]
[1725358414030,0.4376072,58959.0,58958.0,0.157848]
[1725358416434,0.4386072,58959.0,58958.0,0.157848]
[1725358419537,0.4994405,58959.0,58958.0,0.157848]
[1725358420926,0.5004405,58959.0,58958.0,0.157848]
[1725358421421,0.4396072,58959.0,58958.0,0.157848]
[1725358422329,0.4386072,58959.0,58958.0,0.157848]
[1725358422631,0.4386072,58959.0,58958.0,0.158848]
[1725358422837,0.4346072,58959.0,58958.0,0.158848]
[1725358423139,0.4356072,58959.0,58958.0,0.157848]
[1725358423725,0.4376072,58959.0,58958.0,0.157848]
[1725358425629,0.4366072,58959.0,58958.0,0.158848]
[1725358425831,0.4346072,58959.0,58958.0,0.158848]
[1725358426336,0.4356072,58959.0,58958.0,0.157848]
[1725358426727,0.4376072,58959.0,58958.0,0.157848]
[1725358429232,0.4356072,58959.0,58958.0,0.157848]
[1725358429433,0.4356072,58959.0,58958.0,0.159848]
[1725358430035,0.4346072,58959.0,58958.0,0.159848]
[1725358430230,0.4346072,58959.0,58958.0,0.161848]
[1725358430537,0.4356072,58959.0,58958.0,0.161848]
[1725358432331,0.4356072,58959.0,58958.0,0.157848]
[1725358432736,0.4346072,58959.0,58958.0,0.157848]
[1725358433444,0.0738072,58959.0,58958.0,0.157848]
[1725358433738,0.0748072,58959.0,58958.0,0.157848]
[1725358434839,0.0014,58959.0,58958.0,0.157848]
[1725358436240,0.0014,58959.0,58958.0,0.158848]
[1725358436628,0.0004,58959.0,58958.0,0.158848]
[1725358455455,0.0004,58959.0,58958.0,0.226696]
[1725358457758,0.06122776,58959.0,58958.0,0.158848]
[1725358463159,0.13083275,58959.0,58958.0,0.158848]
[1725358464555,0.0004,58959.0,58958.0,0.158848]
[1725358481478,0.0004,58959.0,58958.0,0.157848]
[1725358481771,0.0004,58959.0,58958.0,0.161848]
[1725358482073,0.0004,58959.0,58958.0,0.157848]
[1725358482274,0.0004,58959.0,58958.0,0.164848]
[1725358482771,0.0004,58959.0,58958.0,0.162848]
[1725358483375,0.0004,58959.0,58958.0,0.160848]
[1725358483678,0.0004,58959.0,58958.0,0.228696]
[1725358483978,0.0004,58959.0,58958.0,0.44284076]
[1725358484273,0.0004,58959.0,58958.0,0.35793977]
[1725358484476,0.0004,58959.0,58958.0,0.44063092]
[1725358487174,0.0004,58959.0,58958.0,0.35593693]
[1725358487764,0.0004,58959.0,58958.0,0.226696]
[1725358492772,0.0004,58959.0,58958.0,1.756696]
[1725358493677,0.0004,58959.0,58958.0,1.824544]
[1725358494884,0.0004,58959.0,58958.0,1.9537792]
[1725358495786,0.0004,58959.0,58958.0,0.4237792]
[1725358499086,0.0004,58959.0,58958.0,0.50839273]
[1725358499886,0.0004,58959.0,58958.0,0.41839273]
[1725358500084,0.0004,58959.0,58958.0,0.50839273]
[1725358501084,0.0004,58959.0,58958.0,0.50839231]
[1725358502381,0.0004,58959.0,58958.0,0.50839397]
[1725358502581,0.0004,58959.0,58958.0,0.37915753]
[1725358502878,0.0004,58959.0,58958.0,0.158848]
[1725358511888,0.068247,58959.0,58958.0,0.158848]
[1725358512589,0.068247,58959.0,58953.0,0.004]
[1725358512590,0.135704,58954.0,58953.0,0.004]
[1725358512890,0.629052,58954.0,58950.0,0.00025447]
[1725358513095,0.158256,58951.0,58950.0,0.00025447]
[1725358513287,0.178256,58951.0,58950.0,0.00025447]
[1725358513495,0.687176,58951.0,58950.0,0.00025447]
[1725358513988,0.178256,58951.0,58950.0,0.00025447]
[1725358514299,0.171256,58951.0,58950.0,0.00025447]
[1725358515195,0.166256,58951.0,58950.0,0.00025447]
[1725358516200,0.167256,58951.0,58950.0,0.00825447]
[1725358517088,0.167256,58951.0,58950.0,0.01825447]
[1725358519403,0.766176,58951.0,58950.0,0.01825447]
[1725358520302,0.834032,58951.0,58950.0,0.01825447]
[1725358521096,0.724032,58951.0,58950.0,0.01825447]
[1725358522294,0.72946368,58951.0,58950.0,0.01825447]
[1725358522694,0.85946368,58951.0,58950.0,0.01825447]
[1725358522996,0.35054368,58951.0,58950.0,0.01825447]
[1725358523202,0.85946368,58951.0,58950.0,0.01825447]
[1725358523398,1.45946368,58951.0,58950.0,0.01825447]
[1725358526995,1.82026368,58951.0,58950.0,0.01825447]
[1725358528193,1.88811968,58951.0,58950.0,0.01825447]
[1725358529794,0.135724,58946.0,58945.0,0.004]
[1725358530104,0.135724,58946.0,58941.0,0.004]
[1725358530105,0.067866,58942.0,58941.0,0.004]
[1725358530309,0.06787,58939.0,58938.0,0.09]
[1725358530603,0.06827,58939.0,58938.0,0.09]
[1725358530903,0.06787,58939.0,58938.0,0.09]
[1725358531101,0.05587,58939.0,58938.0,0.09]
[1725358531306,0.04187,58939.0,58938.0,0.09]
[1725358531805,0.04287,58939.0,58938.0,0.104]
[1725358532101,0.04387,58939.0,58938.0,0.116]
[1725358533799,0.04387,58939.0,58938.0,0.183871]
[1725358534298,0.002,58939.0,58938.0,0.183871]
[1725358538399,0.002,58939.0,58938.0,0.23451193]
[1725358538599,0.022,58939.0,58938.0,0.23451193]
[1725358538799,0.022,58939.0,58938.0,0.183871]
[1725358539199,0.022,58939.0,58938.0,0.23454822]
[1725358539400,0.022,58939.0,58938.0,0.183871]
[1725358541300,0.022,58939.0,58938.0,0.25139224]
[1725358542300,0.022,58939.0,58938.0,0.183871]
[1725358546715,0.022,58939.0,58938.0,0.319613]
[1725358546900,0.0004,58942.0,58941.0,0.067867]
[1725358547209,0.0004,58942.0,58941.0,2.13328703]
[1725358547410,0.0004,58942.0,58941.0,2.26256256]
[1725358547805,0.0004,58942.0,58941.0,0.518667]
[1725358548207,0.0014,58942.0,58941.0,0.518667]
[1725358548415,0.0024,58942.0,58941.0,0.518667]
[1725358548619,0.0024,58942.0,58941.0,0.157867]
[1725358548807,0.0024,58942.0,58941.0,0.16349968]
[1725358550509,0.0024,58942.0,58941.0,0.157867]
[1725358554623,0.0024,58942.0,58941.0,0.586534]
[1725358554811,0.0024,58942.0,58941.0,0.8004329]
[1725358555007,0.0024,58942.0,58941.0,0.8004305]
[1725358555220,0.0024,58942.0,58941.0,0.71581047]
[1725358555823,0.0024,58942.0,58941.0,1.82477047]
[1725358558439,0.0024,58942.0,58941.0,1.82476587]
[1725358558735,0.0024,58942.0,58941.0,1.22476587]
[1725358558943,0.3608,58966.0,58942.0,0.50896]
[1725358559246,0.3608,58966.0,58941.0,0.58007187]
[1725358559247,0.3608,58966.0,58965.0,0.15784]
[1725358559540,0.36633364,58966.0,58965.0,0.15784]
[1725358560137,0.3608,58966.0,58965.0,0.15784]
[1725358560445,0.3608,58966.0,58960.0,0.00025447]
[1725358560446,0.135688,58961.0,58960.0,0.00025447]
[1725358560633,0.606488,58961.0,58960.0,0.00025447]
[1725358560828,1.715288,58961.0,58960.0,0.00025447]
[1725358561146,1.647444,58961.0,58960.0,0.00025447]
[1725358561734,1.651444,58961.0,58960.0,0.00025447]
[1725358562740,1.654444,58961.0,58960.0,0.00025447]
[1725358562936,1.11528634,58961.0,58960.0,0.00025447]
[1725358563147,1.71528634,58961.0,58960.0,0.00025447]
[1725358563544,1.054444,58961.0,58960.0,0.00025447]
[1725358563850,1.054444,58961.0,58960.0,0.22594447]
[1725358563851,0.3678,58961.0,58960.0,0.22594447]
[1725358564050,0.007,58961.0,58960.0,0.36594447]
[1725358566239,0.007,58961.0,58960.0,0.37137904]
[1725358570352,0.007,58961.0,58960.0,0.43922404]
[1725358570648,0.004,58961.0,58960.0,0.43922404]
[1725358570854,0.3694,58973.0,58972.0,0.067832]
[1725358571054,0.3608,58973.0,58972.0,0.297832]
[1725358571943,0.3738,58973.0,58972.0,0.297832]
[1725358572342,0.3858,58973.0,58972.0,0.297832]
[1725358572547,0.025,58973.0,58972.0,0.726464]
[1725358573548,0.025,58973.0,58972.0,0.297832]
[1725358573955,0.021,58973.0,58972.0,0.297832]
[1725358574251,0.076,58973.0,58972.0,0.297832]
[1725358575250,0.016,58973.0,58972.0,0.297832]
[1725358576649,0.016,58973.0,58972.0,0.347732]
[1725358579554,0.016,58973.0,58972.0,0.415564]
[1725358582044,0.016,58973.0,58972.0,0.347732]
[1725358583450,0.016,58973.0,58972.0,0.297832]
[1725358586657,0.026,58973.0,58972.0,0.297832]
[1725358599366,0.026,58973.0,58972.0,0.365664]
[1725358599670,0.026,58973.0,58972.0,0.135664]
[1725358599968,0.15639677,58973.0,58972.0,0.135664]
[1725358600170,0.15639677,58973.0,58972.0,0.067832]
[1725358600962,0.15639677,58973.0,58972.0,0.135664]
[1725358601164,0.0868121,58973.0,58972.0,0.067832]
[1725358601459,0.0868121,58973.0,58972.0,0.135664]
[1725358603170,0.0768121,58973.0,58972.0,0.135664]
[1725358604867,0.0768121,58973.0,58972.0,0.067832]
[1725358605371,0.0768121,58973.0,58972.0,0.135664]
[1725358606477,0.0768121,58973.0,58972.0,0.067832]
[1725358606977,0.14639677,58973.0,58972.0,0.135664]
[1725358607369,0.14639677,58973.0,58972.0,0.067832]
[1725358607861,0.016,58973.0,58972.0,0.067832]
[1725358608061,0.016,58973.0,58972.0,0.225664]
[1725358609064,0.004,58982.0,58981.0,0.067821]
[1725358609268,0.004,58982.0,58981.0,0.157821]
[1725358609269,0.1,58982.0,58981.0,0.157821]
[1725358609965,0.1,58982.0,58981.0,0.297821]
[1725358610365,0.114,58982.0,58981.0,0.298821]
[1725358610565,0.128,58982.0,58981.0,0.298821]
[1725358611674,0.15,58988.0,58981.0,0.831]
[1725358611866,0.406,59001.0,58987.0,0.5908]
[1725358612070,0.004,58994.0,58993.0,0.067808]
[1725358612270,0.0126,58998.0,58994.0,0.067806]
[1725358612467,0.406,59001.0,58997.0,0.23]
[1725358612666,0.496,59001.0,59000.0,0.23]
[1725358613067,0.496,59001.0,58994.0,0.067806]
[1725358613068,1.072278,59001.0,58994.0,0.067806]
[1725358613264,0.563798,59001.0,58998.0,0.23]
[1725358614178,0.575798,59001.0,59000.0,0.002]
[1725358614380,1.084278,59001.0,59000.0,0.002]
[1725358614876,0.78427346,59001.0,59000.0,0.001]
[1725358615078,1.14507346,59001.0,59000.0,0.001]
[1725358616084,1.15007346,59001.0,58998.0,0.299802]
[1725358616385,0.0004,58999.0,58998.0,0.299802]
[1725358616573,0.53199546,58999.0,58998.0,0.298802]
[1725358616981,0.53199546,58999.0,58998.0,0.297802]
[1725358617474,0.53199546,58999.0,58998.0,0.299802]
[1725358617774,0.53199546,58999.0,58998.0,0.300802]
[1725358619582,0.53199546,58999.0,58998.0,0.301802]
[1725358620775,0.53199546,58999.0,58998.0,0.299802]
[1725358620971,0.53199546,58999.0,58998.0,0.301802]
[1725358621879,0.17119546,58999.0,58998.0,0.301802]
[1725358622084,0.17119546,58999.0,58998.0,0.369604]
[1725358622775,0.17119546,58999.0,58998.0,0.367604]
[1725358623080,0.1104,58999.0,58998.0,0.370604]
[1725358623481,0.1104,58999.0,58998.0,0.368604]
[1725358623800,0.1104,58999.0,58998.0,0.377604]
[1725358624093,0.1104,58999.0,58998.0,0.322802]
[1725358624877,0.1104,58999.0,58998.0,0.324802]
[1725358626179,0.1104,58999.0,58998.0,0.321802]
[1725358626488,0.0004,58999.0,58998.0,0.387604]
[1725358626873,0.0004,58999.0,58998.0,0.377604]
[1725358627074,0.0004,58999.0,58998.0,0.387604]
[1725358628285,0.0004,58999.0,58998.0,0.748404]
[1725358628874,0.0004,58999.0,58998.0,0.736404]
[1725358629085,0.0004,58999.0,58998.0,0.748404]
[1725358629574,0.0004,58999.0,58998.0,0.749404]
[1725358629781,0.0004,58999.0,58998.0,0.737404]
[1725358629977,0.06118779,58999.0,58998.0,0.750404]
[1725358630177,0.06118779,58999.0,58998.0,0.799604]
[1725358630386,0.06118779,58999.0,58998.0,0.788604]
[1725358630680,0.06118779,58999.0,58998.0,0.797604]
[1725358631074,0.07118779,58999.0,58998.0,0.797604]
[1725358631687,0.07118779,58999.0,58998.0,0.319802]
[1725358632583,0.07118779,58999.0,58998.0,0.27310181]
[1725358632779,0.07118779,58999.0,58998.0,0.28510181]
[1725358633386,0.07118779,58999.0,58998.0,0.27210181]
[1725358633687,0.14074043,58999.0,58998.0,0.05210181]
[1725358633987,0.14074043,58999.0,58998.0,0.28210181]
[1725358634182,0.14074043,58999.0,58998.0,0.27910181]
[1725358635980,0.14074043,58999.0,58998.0,0.27810181]
[1725358636584,0.14074043,58999.0,58998.0,0.26810181]
[1725358636780,0.14074043,58999.0,58998.0,0.26910181]
[1725358636994,0.14074043,58999.0,58998.0,0.27410181]
[1725358637381,0.14074043,58999.0,58998.0,0.27110181]
[1725358637586,0.14074043,58999.0,58998.0,0.235]
[1725358637784,0.14074043,58999.0,58998.0,0.306802]
[1725358638084,0.0104,58999.0,58998.0,0.306802]
[1725358639290,0.0104,58999.0,58998.0,0.009]
[1725358640095,0.1004,58999.0,58998.0,0.009]
[1725358640288,0.1004,58999.0,58998.0,0.008]
[1725358640779,0.1004,58999.0,58998.0,0.006]
[1725358641181,0.1004,58999.0,58998.0,0.004]
[1725358641391,0.1004,58999.0,58998.0,0.003]
[1725358641886,0.51888,58999.0,58998.0,0.003]
[1725358642081,0.0104,58999.0,58998.0,0.003]
[1725358642286,0.0104,58999.0,58998.0,0.070802]
[1725358656101,0.0004,58999.0,58998.0,0.070802]
[1725358660516,0.1104,58999.0,58998.0,0.070802]
[1725358660810,0.1104,58999.0,58998.0,0.120202]
[1725358662418,0.1104,58999.0,58998.0,0.188004]
[1725358662618,0.1104,58999.0,58998.0,0.120202]
[1725358663924,0.1104,58999.0,58998.0,0.210202]
[1725358664719,0.1104,58999.0,58998.0,0.26068618]
[1725358665624,0.1104,58999.0,58998.0,0.210202]
[1725358667425,0.1104,58999.0,58998.0,0.26092521]
[1725358668027,0.1104,58999.0,58998.0,0.210202]
[1725358668324,0.36168,59005.0,58999.0,0.067801]
[1725358668528,0.36168,59005.0,59004.0,0.09]
[1725358668529,0.4908,59005.0,59004.0,0.09]
[1725358669219,0.4908,59005.0,59004.0,0.157795]
[1725358670628,0.4928,59005.0,59004.0,0.157795]
[1725358671629,0.4958,59005.0,59004.0,0.157795]
[1725358672321,0.4928,59005.0,59004.0,0.159795]
[1725358672727,0.4908,59005.0,59004.0,0.161795]
[1725358672922,0.13,59005.0,59004.0,0.161795]
[1725358673529,0.13,59005.0,59004.0,0.162795]
[1725358675931,0.13,59005.0,59004.0,0.16831384]
[1725358682236,0.13,59005.0,59004.0,0.23610884]
[1725358682431,0.13,59005.0,59004.0,0.30342108]
[1725358683137,0.13,59005.0,59004.0,0.23610884]
[1725358683341,0.13,59005.0,59004.0,0.16831384]
[1725358688944,0.13,59005.0,59004.0,0.21897181]
[1725358689143,0.13,59005.0,59004.0,0.16831384]
[1725358689338,0.13,59005.0,59004.0,0.21897181]
[1725358689930,0.13,59005.0,59004.0,0.16831384]
[1725358692138,0.13,59005.0,59004.0,0.07831384]
[1725358692339,0.13,59005.0,59004.0,0.162795]
[1725358700449,0.13,59005.0,59004.0,0.23010724]
[1725358701440,0.13,59005.0,59004.0,0.22810724]
[1725358701646,0.13,59005.0,59004.0,0.24210724]
[1725358702256,0.13,59005.0,59004.0,0.24010724]
[1725358702450,0.13,59005.0,59004.0,0.170795]
[1725358704150,0.13,59005.0,59004.0,0.163795]
[1725358704450,0.13,59005.0,59004.0,0.170795]
[1725358705358,0.13,59005.0,59004.0,0.164795]
[1725358705543,0.13,59005.0,59004.0,0.170795]
[1725358705850,0.13,59005.0,59004.0,0.163795]
[1725358706050,0.13,59005.0,59004.0,0.171795]
[1725358706256,0.13,59005.0,59004.0,0.165795]
[1725358706553,0.13,59005.0,59004.0,0.24059]
[1725358707658,0.19,59011.0,59010.0,0.067788]
[1725358707864,0.01,59011.0,59010.0,0.09]
[1725358708056,0.3608,59019.0,59018.0,0.067779]
[1725358709162,0.004,59028.0,59016.0,0.09]
[1725358709356,0.3608,59031.0,59025.0,0.09]
[1725358709357,0.06077047,59026.0,59025.0,0.09]
[1725358709563,0.10077047,59026.0,59025.0,0.09]
[1725358709963,0.06077047,59026.0,59025.0,0.157771]
[1725358711667,0.06077047,59026.0,59025.0,0.158771]
[1725358711866,0.06077047,59030.0,59025.0,0.158771]
[1725358712066,0.3608,59031.0,59029.0,0.09]
[1725358712267,0.4808,59031.0,59027.0,0.09]
[1725358712667,0.0004,59028.0,59027.0,0.09]
[1725358712863,0.1204,59028.0,59027.0,0.09]
[1725358713167,0.101,59030.0,59027.0,0.09]
[1725358713367,0.101,59030.0,59025.0,0.001]
[1725358713368,0.09,59029.0,59025.0,0.091]
[1725358713671,0.2596,59029.0,59026.0,0.09]
[1725358714168,0.09,59027.0,59025.0,0.001]
[1725358714368,0.42857,59026.0,59025.0,0.001]
[1725358714666,0.54857,59026.0,59025.0,0.001]
[1725358714973,0.54757,59026.0,59021.0,0.09]
[1725358715166,0.54657,59026.0,59021.0,0.09]
[1725358715566,0.54757,59026.0,59025.0,0.001]
[1725358715980,0.4808,59026.0,59025.0,0.092]
[1725358716378,0.4808,59026.0,59025.0,0.159771]
[1725358716577,0.3608,59026.0,59025.0,0.159771]
[1725358716790,0.00096001,59037.0,59036.0,0.067758]
[1725358716978,0.3608,59047.0,59034.0,0.3608]
[1725358717184,0.157751,59043.0,59039.0,0.09]
[1725358717381,0.197751,59043.0,59039.0,0.09]
[1725358718883,0.133,59043.0,59039.0,0.091]
[1725358719388,0.133,59043.0,59042.0,0.09]
[1725358719389,0.044,59043.0,59042.0,0.09]
[1725358720491,0.004,59043.0,59042.0,0.09]
[1725358720786,0.002,59043.0,59042.0,0.091]
[1725358722089,0.132,59043.0,59042.0,0.001]
[1725358722285,0.132,59043.0,59042.0,0.002]
[1725358723087,0.132,59043.0,59042.0,0.092]
[1725358725996,0.002,59043.0,59042.0,0.159751]
[1725358728687,0.002,59043.0,59042.0,0.069751]
[1725358728892,0.112,59043.0,59042.0,0.092]
[1725358731702,0.17975,59043.0,59042.0,0.002]
[1725358731892,0.68787,59043.0,59042.0,0.002]
[1725358732094,0.75867,59043.0,59042.0,0.002]
[1725358734000,0.25055,59043.0,59042.0,0.002]
[1725358734795,1.35867,59043.0,59042.0,0.002]
[1725358735196,0.75867,59043.0,59042.0,0.002]
[1725358736808,1.11947,59043.0,59042.0,0.002]
[1725358737608,1.20947,59043.0,59042.0,0.002]
[1725358738900,0.54055,59043.0,59042.0,0.002]
[1725358739101,0.63055,59043.0,59042.0,0.002]
[1725358740902,0.63055,59043.0,59042.0,0.069751]
[1725358740903,0.5628,59043.0,59042.0,0.069751]
[1725358742209,0.62354785,59043.0,59042.0,0.069751]
[1725358745213,0.53354785,59043.0,59042.0,0.159751]
[1725358746317,0.60305531,59043.0,59042.0,0.159751]
[1725358747527,0.68132238,59043.0,59042.0,0.13160057]
[1725358748618,0.57132238,59043.0,59042.0,0.13160057]
[1725358748812,0.49305531,59043.0,59042.0,0.13160057]
[1725358750026,0.49105531,59043.0,59042.0,0.15560057]
[1725358750226,0.3608,59043.0,59042.0,0.15560057]
[1725358750717,0.3608,59043.0,59042.0,0.15360057]
[1725358750921,0.3608,59043.0,59042.0,0.15260057]
[1725358751224,0.3608,59043.0,59042.0,0.14160057]
[1725358751416,0.5708,59043.0,59042.0,0.06060057]
[1725358752622,0.5708,59043.0,59042.0,0.019]
[1725358752812,0.5708,59043.0,59042.0,0.017]
[1725358754511,0.4808,59043.0,59042.0,0.017]
[1725358754715,1.05667,59043.0,59042.0,0.017]
[1725358756021,0.54855,59043.0,59042.0,0.017]
[1725358756325,0.55395536,59043.0,59042.0,0.017]
[1725358757620,0.48620536,59043.0,59042.0,0.017]
[1725358758220,0.4808,59043.0,59042.0,0.017]
[1725358759722,0.12,59043.0,59042.0,0.017]
[1725358761632,0.4808,59043.0,59042.0,0.017]
[1725358765232,0.55030814,59043.0,59042.0,0.017]
[1725358765436,0.55030814,59043.0,59042.0,0.084751]
[1725358765733,0.4808,59043.0,59042.0,0.084751]
[1725358766435,0.55030814,59043.0,59042.0,0.084751]
[1725358766619,0.4808,59043.0,59042.0,0.084751]
[1725358767123,0.54154469,59043.0,59042.0,0.084751]
[1725358769125,0.61105283,59043.0,59042.0,0.084751]
[1725358769327,0.54154469,59043.0,59042.0,0.084751]
[1725358770438,0.61105283,59043.0,59042.0,0.084751]
[1725358770735,0.54154469,59043.0,59042.0,0.084751]
[1725358771934,0.54154469,59043.0,59042.0,0.174751]
[1725358772134,0.4808,59043.0,59042.0,0.174751]
[1725358778037,0.428542,59050.0,59045.0,0.067747]
[1725358778239,0.06074358,59049.0,59048.0,0.09]
[1725358778430,0.14074358,59049.0,59048.0,0.09]
[1725358778626,0.50154358,59049.0,59048.0,0.09]
[1725358779747,0.50154358,59049.0,59048.0,0.093]
[1725358780044,0.50154358,59049.0,59048.0,0.094]
[1725358780238,0.58856625,59049.0,59048.0,0.094]
[1725358781234,0.14950374,59049.0,59048.0,0.161744]
[1725358781933,0.22776625,59049.0,59048.0,0.161744]
[1725358782741,0.22776625,59049.0,59048.0,0.165744]
[1725358783245,0.22776625,59049.0,59048.0,0.17128623]
[1725358783543,0.22776625,59049.0,59048.0,0.160744]
[1725358783744,0.22776625,59049.0,59048.0,0.165744]
[1725358784537,0.22776625,59049.0,59048.0,0.167744]
[1725358784740,0.08,59049.0,59048.0,0.167744]
[1725358784946,0.08,59049.0,59048.0,0.077744]
[1725358785142,0.5308,59049.0,59048.0,0.005]
[1725358785338,0.5308,59049.0,59048.0,0.009]
[1725358785740,0.5308,59049.0,59048.0,0.005]
[1725358785947,0.5308,59049.0,59048.0,0.015]
[1725358786150,0.5308,59049.0,59048.0,0.014]
[1725358786944,0.5308,59049.0,59048.0,0.011]
[1725358787653,0.5308,59049.0,59048.0,0.071744]
[1725358787844,0.4408,59049.0,59048.0,0.071744]
[1725358788745,0.4408,59049.0,59048.0,0.070744]
[1725358789450,0.598543,59049.0,59048.0,0.003]
[1725358791845,0.60409826,59049.0,59048.0,0.003]
[1725358793142,0.67184126,59049.0,59048.0,0.003]
[1725358794861,0.60409826,59049.0,59048.0,0.003]
[1725358795057,0.67184126,59049.0,59048.0,0.003]
[1725358795360,0.74134739,59049.0,59048.0,0.003]
[1725358795951,0.67360439,59049.0,59048.0,0.003]
[1725358796150,0.74134739,59049.0,59048.0,0.003]
[1725358796356,0.67360439,59049.0,59048.0,0.003]
[1725358796760,0.75186996,59049.0,59048.0,0.003]
[1725358797654,0.67360439,59049.0,59048.0,0.003]
[1725358797858,0.60586139,59049.0,59048.0,0.070744]
[1725358798758,0.32332696,59049.0,59048.0,0.070744]
[1725358798956,0.68412696,59049.0,59048.0,0.070744]
[1725358800763,0.60586139,59049.0,59048.0,0.070744]
[1725358801858,0.68412696,59049.0,59048.0,0.070744]
[1725358802272,0.61462083,59049.0,59048.0,0.070744]
[1725358802572,0.53635526,59049.0,59048.0,0.070744]
[1725358803760,0.60409826,59049.0,59048.0,0.003]
[1725358804968,0.67184126,59049.0,59048.0,0.003]
[1725358806065,0.58184126,59049.0,59048.0,0.003]
[1725358806265,0.67184126,59049.0,59048.0,0.003]
[1725358807675,1.03264126,59049.0,59048.0,0.003]
[1725358808580,0.80715526,59049.0,59048.0,0.070744]
[1725358808784,0.8016,59049.0,59048.0,0.070744]
[1725358809468,0.08,59049.0,59048.0,0.070744]
[1725358809771,0.3608,59049.0,59048.0,0.070744]
[1725358809974,0.429538,59054.0,59050.0,0.067741]
[1725358810277,0.558538,59054.0,59051.0,0.0989]
[1725358810469,0.0695013,59053.0,59051.0,0.0989]
[1725358810680,0.0695013,59052.0,59051.0,0.0989]
[1725358810972,0.1995013,59052.0,59051.0,0.0989]
[1725358811174,0.27776144,59052.0,59051.0,0.08901001]
[1725358812473,0.27776144,59052.0,59051.0,0.15675101]
[1725358813479,0.27876144,59052.0,59051.0,0.15675101]
[1725358814470,0.50876144,59052.0,59051.0,0.15675101]
[1725358815073,0.50776144,59052.0,59051.0,0.15775101]
[1725358815375,0.50776144,59052.0,59051.0,0.15975101]
[1725358816174,0.4295013,59052.0,59051.0,0.15975101]
[1725358816375,0.37776144,59052.0,59051.0,0.15975101]
[1725358816678,0.2995013,59052.0,59051.0,0.15975101]
[1725358816875,0.14776144,59052.0,59051.0,0.15975101]
[1725358817064,0.0695013,59052.0,59051.0,0.15975101]
[1725358817473,0.36168,59054.0,59051.0,0.15975101]
[1725358817474,0.3608,59054.0,59052.0,0.067739]
[1725358819183,0.3608,59054.0,59052.0,0.068739]
[1725358819373,0.43408324,59056.0,59052.0,0.068739]
[1725358819577,0.54408324,59056.0,59052.0,0.068739]
[1725358820173,0.54408324,59056.0,59052.0,0.072739]
[1725358820571,0.54408324,59056.0,59053.0,0.067738]
[1725358821782,0.23,59054.0,59053.0,0.067738]
[1725358822082,0.23,59054.0,59053.0,0.071738]
[1725358822685,0.23,59054.0,59053.0,0.073738]
[1725358822886,0.23,59054.0,59053.0,0.069738]
[1725358823093,0.23,59054.0,59053.0,0.068738]
[1725358823285,0.23,59054.0,59053.0,0.070738]
[1725358824782,0.23,59054.0,59053.0,0.069738]
[1725358824983,0.36,59054.0,59053.0,0.069738]
[1725358825289,0.13,59054.0,59053.0,0.069738]
[1725358825490,0.13,59054.0,59053.0,0.068738]
[1725358825689,0.36634824,59056.0,59055.0,0.067736]
[1725358825892,0.47634824,59056.0,59055.0,0.067736]
[1725358827679,0.4708,59056.0,59055.0,0.067736]
[1725358828289,0.4708,59056.0,59055.0,0.297736]
[1725358828689,0.3608,59056.0,59055.0,0.299736]
[1725358829196,0.3608,59056.0,59055.0,0.297736]
[1725358829496,0.3608,59056.0,59055.0,0.298736]
[1725358829697,0.067729,59062.0,59058.0,0.067732]
[1725358829894,0.187729,59062.0,59058.0,0.067732]
[1725358830287,0.19334393,59062.0,59058.0,0.067732]
[1725358830491,0.19334393,59062.0,59055.0,0.232]
[1725358830492,0.12561493,59062.0,59061.0,0.067729]
[1725358830795,0.12,59062.0,59061.0,0.067729]
[1725358830999,0.12,59062.0,59061.0,0.113029]
[1725358831588,0.35,59062.0,59061.0,0.113029]
[1725358831788,0.35,59062.0,59061.0,0.0453]
[1725358832083,0.21,59062.0,59061.0,0.0453]
[1725358832293,0.067731,59060.0,59055.0,0.003]
[1725358832492,0.09,59056.0,59055.0,0.0473]
[1725358832800,0.27989132,59056.0,59055.0,0.0473]
[1725358833090,0.06989132,59056.0,59055.0,0.113036]
[1725358833486,0.06989132,59056.0,59055.0,0.114036]
[1725358833898,0.06989132,59056.0,59055.0,0.116036]
[1725358835093,0.06989132,59056.0,59055.0,1.224036]
[1725358835298,0.06989132,59056.0,59055.0,0.624036]
[1725358835596,0.06989132,59056.0,59055.0,0.623036]
[1725358835794,0.06989132,59056.0,59055.0,0.622036]
[1725358836000,0.06989132,59056.0,59055.0,0.114036]
[1725358836204,0.06989132,59056.0,59055.0,0.113036]
[1725358836502,0.06989132,59056.0,59055.0,0.116036]
[1725358837700,0.06989132,59056.0,59055.0,1.224036]
[1725358838402,0.06989132,59056.0,59055.0,2.754036]
[1725358840290,0.06989132,59056.0,59055.0,1.646036]
[1725358840495,0.06989132,59056.0,59055.0,0.116036]